fUSD/lending_fUSD_20240719
["ID","MTS","AMOUNT","RATE_DAILY","PERIOD"]
[332658959,1721406657243,-2716.85,0.00034246,14]
[332658960,1721406657252,-1599.77,0.00034246,14]
[332658961,1721406657261,-500.0,0.00034246,14]
[332658962,1721406657271,-719.64,0.00034246,14]
[332658963,1721406657280,-857.73,0.00034246,14]
[332658964,1721406657289,-1986.48,0.00034246,14]
[332658965,1721406657299,-938.89,0.00034246,14]
[332658966,1721406657308,-500.0,0.00034246,14]
[332658967,1721406657318,-1434.26,0.00034246,14]
[332658968,1721406657327,-700.01,0.00034246,14]
[332658969,1721406657336,-500.0,0.00034246,14]
[332658970,1721406657346,-500.0,0.00034246,14]
[332658971,1721406657356,-500.0,0.00034246,14]
[332658972,1721406657365,-1795.89,0.00034246,14]
[332658973,1721406657377,-739.71,0.00034246,14]
[332658974,1721406657387,-500.0,0.00034246,14]
[332658975,1721406657397,-925.24,0.00034246,14]
[332658976,1721406657406,-500.0,0.00034246,14]
[332658977,1721406657415,-2641.15,0.00034246,14]
[332658978,1721406657426,-856.94,0.00034246,14]
[332658979,1721406657435,-690.03,0.00034246,14]
[332658980,1721406657444,-500.0,0.00034246,14]
[332658981,1721406657454,-1022.79,0.00034246,14]
[332658982,1721406657463,-1025.98,0.00034246,14]
[332658983,1721406657473,-712.85,0.00034246,14]
[332658984,1721406657482,-500.0,0.00034246,14]
[332658985,1721406657491,-644.42,0.00034246,14]
[332658986,1721406657500,-847.33,0.00034246,14]
[332658987,1721406657510,-2189.59,0.00034246,14]
[332658988,1721406657519,-500.0,0.00034246,14]
[332658989,1721406657528,-500.0,0.00034246,14]
[332658990,1721406657538,-748.24,0.00034246,14]
[332658991,1721406657548,-212.22118832,0.00034246,14]
[332658992,1721406657558,-500.0,0.00034246,14]
[332658993,1721406657568,-2660.99,0.00034246,14]
[332658994,1721406657578,-500.0,0.00034246,14]
[332658995,1721406657588,-792.94,0.00034246,14]
[332658996,1721406657598,-1669.97,0.00034246,14]
[332658997,1721406657607,-219.2377201,0.00034246,14]
[332658998,1721406657617,-500.0,0.00034246,14]
[332658999,1721406657632,-3200.91,0.00034246,14]
[332659000,1721406657642,-650.68,0.00034246,14]
[332659001,1721406657652,-576.05,0.00034246,14]
[332659002,1721406657661,-1188.46,0.00034246,14]
[332659003,1721406657671,-524.24,0.00034246,14]
[332659004,1721406657681,-2101.33,0.00034246,14]
[332659005,1721406657690,-500.0,0.00034246,14]
[332659006,1721406657700,-3620.33,0.00034246,14]
[332659007,1721406657710,-724.14,0.00034246,14]
[332659008,1721406657721,-500.0,0.00034246,14]
[332659009,1721406657730,-500.0,0.00034246,14]
[332659010,1721406657740,-1606.46,0.00034246,14]
[332659011,1721406657749,-2849.42,0.00034246,14]
[332659012,1721406657759,-735.51,0.00034246,14]
[332659013,1721406657768,-1136.35,0.00034246,14]
[332659014,1721406657777,-500.0,0.00034246,14]
[332659015,1721406657786,-2219.39,0.00034246,14]
[332659016,1721406657799,-3478.95,0.00034246,14]
[332659017,1721406657809,-1471.57,0.00034246,14]
[332659018,1721406657819,-500.0,0.00034246,14]
[332659019,1721406657828,-536.55,0.00034246,14]
[332659020,1721406657837,-619.21,0.00034246,14]
[332659021,1721406657846,-3703.31,0.00034246,14]
[332659022,1721406657856,-1121.26,0.00034246,14]
[332659023,1721406657865,-552.02,0.00034246,14]
[332659024,1721406657877,-500.0,0.00034246,14]
[332659025,1721406657887,-500.0,0.00034246,14]
[332659026,1721406657897,-1380.4,0.00034246,14]
[332659027,1721406657906,-1550.95,0.00034246,14]
[332659028,1721406657916,-500.0,0.00034246,14]
[332659029,1721406657925,-1560.94,0.00034246,14]
[332659030,1721406657935,-522.62,0.00034246,14]
[332659031,1721406657944,-1049.36,0.00034246,14]
[332659032,1721406657954,-533.79,0.00034246,14]
[332659033,1721406657963,-1990.65,0.00034246,14]
[332659034,1721406657972,-1730.51,0.00034246,14]
[332659035,1721406657982,-551.36,0.00034246,14]
[332659036,1721406657991,-1111.98,0.00034246,14]
[332659037,1721406658000,-4326.01,0.00034246,14]
[332659038,1721406658009,-588.86,0.00034246,14]
[332659039,1721406658019,-1572.72,0.00034246,14]
[332659040,1721406658028,-760.92,0.00034246,14]
[332659041,1721406658037,-1936.7,0.00034246,14]
[332659042,1721406658046,-500.0,0.00034246,14]
[332659043,1721406658055,-2053.54,0.00034246,14]
[332659044,1721406658065,-2486.51,0.00034246,14]
[332659045,1721406658074,-4288.83,0.00034246,14]
[332659046,1721406658083,-500.0,0.00034246,14]
[332659047,1721406658092,-2391.82,0.00034246,14]
[332659048,1721406658101,-996.04,0.00034246,14]
[332659049,1721406658110,-702.75,0.00034246,14]
[332659050,1721406658119,-500.0,0.00034246,14]
[332659051,1721406658129,-500.0,0.00034246,14]
[332659052,1721406658138,-500.0,0.00034246,14]
[332659053,1721406658148,-500.0,0.00034246,14]
[332659054,1721406658158,-1236.2,0.00034246,14]
[332659055,1721406658167,-1419.38,0.00034246,14]
[332659056,1721406658177,-500.0,0.00034246,14]
[332659057,1721406658186,-2723.49,0.00034246,14]
[332659058,1721406658500,-500.0,0.00034246,14]
[332659059,1721406658511,-1245.55,0.00034246,14]
[332659060,1721406658522,-500.0,0.00034246,14]
[332659061,1721406658532,-1708.14,0.00034246,14]
[332659062,1721406658543,-500.0,0.00034246,14]
[332659063,1721406658554,-2111.97,0.00034246,14]
[332659064,1721406658565,-532.50063247,0.00034246,14]
[332659065,1721406658575,-2049.75,0.00034246,7]
[332659066,1721406658584,-500.0,0.00034246,14]
[332659067,1721406658595,-3150.3,0.00034246,14]
[332659068,1721406658605,-583.78,0.00034246,14]
[332659069,1721406658616,-1289.1,0.00034246,14]
[332659070,1721406658627,-766.34,0.00034246,14]
[332659071,1721406658637,-913.26,0.00034246,14]
[332659072,1721406658649,-2072.22,0.00034246,14]
[332659073,1721406658658,-1118.18,0.00034246,14]
[332659074,1721406658667,-2467.95,0.00034246,14]
[332659075,1721406658677,-2287.86,0.00034246,14]
[332659076,1721406658686,-500.0,0.00034246,14]
[332659077,1721406658695,-3489.46,0.00034246,14]
[332659078,1721406658705,-823.26,0.00034246,14]
[332659079,1721406658714,-1668.58,0.00034246,14]
[332659080,1721406658726,-500.0,0.00034246,14]
[332659081,1721406658737,-500.0,0.00034246,14]
[332659082,1721406658748,-1578.39,0.00034246,14]
[332659083,1721406658758,-500.0,0.00034246,14]
[332659084,1721406658768,-500.0,0.00034246,14]
[332659085,1721406658779,-500.0,0.00034246,14]
[332659086,1721406658790,-541.63,0.00034246,14]
[332659087,1721406658801,-756.25,0.00034246,14]
[332659088,1721406658811,-500.0,0.00034246,14]
[332659089,1721406658820,-500.0,0.00034246,14]
[332659090,1721406658830,-1412.59,0.00034246,14]
[332659091,1721406658839,-1067.11,0.00034246,14]
[332659092,1721406658849,-2948.42,0.00034246,14]
[332659093,1721406658859,-784.93,0.00034246,14]
[332659094,1721406658871,-500.0,0.00034246,14]
[332659095,1721406658881,-640.01,0.00034246,14]
[332659096,1721406658890,-516.82408328,0.00034246,14]
[332659097,1721406658902,-513.52,0.00034246,14]
[332659098,1721406658913,-1028.44,0.00034246,14]
[332659099,1721406658924,-2252.48,0.00034246,14]
[332659100,1721406658933,-500.0,0.00034246,14]
[332659101,1721406658943,-3712.8,0.00034246,14]
[332659102,1721406658953,-2021.9,0.00034246,14]
[332659103,1721406658963,-1403.26,0.00034246,14]
[332659104,1721406658974,-500.0,0.00034246,14]
[332659105,1721406658983,-674.78,0.00034246,14]
[332659106,1721406658993,-937.06,0.00034246,14]
[332659107,1721406659002,-2643.01,0.00034246,14]
[332659108,1721406659012,-1627.03,0.00034246,14]
[332659109,1721406659022,-2462.55,0.00034246,14]
[332659110,1721406659031,-500.0,0.00034246,14]
[332659111,1721406659041,-3287.52,0.00034246,14]
[332659112,1721406659051,-500.0,0.00034246,14]
[332659113,1721406659060,-1936.03,0.00034246,14]
[332659114,1721406659070,-1517.11795591,0.00034246,14]
[332659115,1721406659096,-686.15893704,0.00034246,14]
[332659116,1721406659108,-130.32310705,0.00034246,14]
[332659117,1721406659117,-1393.59,0.00034246,14]
[332659118,1721406659128,-95.49943365,0.00034246,14]
[332659119,1721406659140,-1429.80056635,0.00034246,14]
[332659120,1721406659150,-500.0,0.00034246,14]
[332659121,1721406659159,-500.0,0.00034246,14]
[332659122,1721406659168,-573.94,0.00034246,14]
[332659123,1721406659178,-511.36626865,0.00034246,14]
[332659124,1721406659187,-1371.28,0.00034246,14]
[332659125,1721406659197,-3469.57,0.00034246,14]
[332659126,1721406659206,-631.52,0.00034246,14]
[332659127,1721406659216,-481.12316501,0.00034246,14]
[332659128,1721406659346,-1000.0,0.00026632,2]
[332659129,1721406659356,-1000.0,0.00026632,2]
[332659130,1721406659365,-1000.0,0.00026632,2]
[332659131,1721406659376,-67.18276272,0.00026632,2]
[332659132,1721406659388,-932.81723728,0.00026632,2]
[332659133,1721406659398,-1000.0,0.00026632,2]
[332659134,1721406659407,-1000.0,0.00026632,2]
[332659135,1721406659417,-572.58051362,0.00032198,10]
[332659136,1721406659432,-1000.0,0.00026632,2]
[332659137,1721406659442,-941.56,0.00032198,10]
[332659138,1721406659454,-505.07948638,0.00032198,10]
[332659139,1721406659463,-153.0,0.00034029,2]
[332659140,1721406659473,-107.30683499,0.00034246,14]
[332659141,1721406659483,-1955.31,0.00034246,14]
[332659142,1721406659492,-84.76388243,0.00034246,14]
[332659143,1721406659503,-704.49547457,0.00034246,14]
[332659144,1721406659514,-550.18428788,0.00034246,14]
[332659145,1721406659526,-765.67486631,0.00034246,14]
[332659146,1721406659538,-71.05148881,0.00034246,14]
[332659147,1721406659547,-253.90685487,0.00034246,14]
[332659148,1721406659559,-246.09314513,0.00034246,14]
[332659149,1721406659568,-1456.26010229,0.00034246,14]
[332659920,1721407064355,-150.0,0.00015,2]
[332659921,1721407064376,-5000.0,0.00016,2]
[332659922,1721407064396,-2921.40351873,0.00016441,2]
[332659923,1721407064415,-1136.70475368,0.0001647,2]
[332659924,1721407064435,-1761.75637949,0.00016799,2]
[332659925,1721407064456,-338.80771563,0.00016799,2]
[332659926,1721407064475,-176.14525352,0.00016855,2]
[332659927,1721407064494,-159.32598087,0.00016855,2]
[332659928,1721407064513,-156.94537485,0.00016855,2]
[332659929,1721407064535,-162.41487813,0.00016855,2]
[332659930,1721407064562,-232.51594487,0.00016855,2]
[332659931,1721407064585,-452.07379537,0.00016968,2]
[332659932,1721407064610,-200.0,0.00017,2]
[332659933,1721407064632,-300.0,0.00017259,2]
[332659934,1721407064655,-19851.90640486,0.0001726,2]
[332659963,1721407832073,-523.015,0.00016708,2]
[332659964,1721407832126,-1238.74137949,0.00016708,2]
[332659965,1721407832136,-2398.04600461,0.00016799,2]
[332659966,1721407832148,-318.07749679,0.00016799,2]
[332659967,1721407832160,-450.0,0.00016799,2]
[332659968,1721407832173,-1618.07633989,0.00016799,2]
[332659969,1721407832185,-3185.94146673,0.00016799,2]
[332659970,1721407832197,-703.37788318,0.00016799,2]
[332659971,1721407832208,-291.826501,0.00016799,2]
[332659972,1721407832242,-472.53583505,0.00016799,2]
[332659973,1721407832255,-538.64148556,0.00016799,2]
[332659974,1721407832268,-1974.8225,0.00016799,2]
[332659975,1721407832279,-792.5901174,0.00016799,2]
[332659976,1721407832292,-4259.61070056,0.00016799,2]
[332659977,1721407832303,-11061.45693834,0.00016799,2]
[332659978,1721407832313,-300.0,0.00016948,2]
[332659979,1721407832322,-300.0,0.00017259,2]
[332659980,1721407832332,-2540.2,0.0001726,2]
[332659981,1721407832342,-901.59887254,0.0001726,2]
[332659982,1721407832352,-654.74,0.0001726,2]
[332659983,1721407832368,-420.0,0.00018512,2]
[332659984,1721407832379,-150.0,0.00018986,2]
[332659985,1721407832390,-250.0,0.00019,2]
[332659986,1721407832401,-587.0,0.00020221,2]
[332659987,1721407832411,-155.47078528,0.00020921,2]
[332659989,1721407832422,-300.0,0.00021,2]
[332659990,1721407832431,-5533.1,0.00021,2]
[332659992,1721407832441,-160.47,0.00021644,2]
[332659994,1721407832451,-219.93,0.00021644,2]
[332659996,1721407832460,-679.70382261,0.00021756,2]
[332659998,1721407832470,-7999.13,0.00021757,2]
[332659999,1721407832481,-166.5,0.00021918,2]
[332660000,1721407832491,-823.0,0.00022087,2]
[332660001,1721407832501,-350.0,0.00023,2]
[332660002,1721407832511,-265.0,0.00024125,2]
[332660003,1721407832521,-511.171,0.00024262,2]
[332660004,1721407832530,-400.0,0.00025,2]
[332660005,1721407832540,-154.92997943,0.00026431,2]
[332660006,1721407832550,-703.8604074,0.00026632,2]
[332660007,1721407832562,-296.1395926,0.00026632,2]
[332660008,1721407832572,-858.72414423,0.00026632,2]
[332660009,1721407832585,-141.27585577,0.00026632,2]
[332660010,1721407832596,-684.72414364,0.00026632,2]
[332660011,1721407832610,-315.27585636,0.00026632,2]
[332660012,1721407832621,-1000.0,0.00026632,2]
[332660013,1721407832631,-1000.0,0.00026632,2]
[332660014,1721407832641,-1000.0,0.00026632,2]
[332660015,1721407832651,-1000.0,0.00026632,2]
[332660016,1721407832661,-1000.0,0.00026632,2]
[332660017,1721407832671,-1000.0,0.00026632,2]
[332660018,1721407832681,-1000.0,0.00026632,2]
[332660019,1721407832690,-556.68524627,0.00026632,2]
[332660020,1721407832702,-443.31475373,0.00026632,2]
[332660021,1721407832712,-1000.0,0.00026632,2]
[332660022,1721407832722,-1000.0,0.00026632,2]
[332660023,1721407832734,-169.79397349,0.00026632,2]
[332660024,1721407832746,-463.05,0.00026632,2]
[332660025,1721407832758,-367.15602651,0.00026632,2]
[332660026,1721407832767,-242.52397347,0.00026632,2]
[332660027,1721407832780,-757.47602653,0.00026632,2]
[332660028,1721407832789,-1000.0,0.00026632,2]
[332660029,1721407832799,-1000.0,0.00026632,2]
[332660030,1721407832809,-1000.0,0.00026632,2]
[332660031,1721407832819,-1000.0,0.00026632,2]
[332660032,1721407832829,-1000.0,0.00026632,2]
[332660033,1721407832839,-1000.0,0.00026632,2]
[332660034,1721407832848,-1000.0,0.00026632,2]
[332660035,1721407832858,-1000.0,0.00026632,2]
[332660036,1721407832868,-1000.0,0.00026632,2]
[332660037,1721407832878,-113.65464095,0.00026632,2]
[332660038,1721407832890,-886.34535905,0.00026632,2]
[332660039,1721407832900,-1000.0,0.00026632,2]
[332660040,1721407832910,-1000.0,0.00026632,2]
[332660041,1721407832920,-1000.0,0.00026632,2]
[332660042,1721407832931,-998.0,0.00026632,2]
[332660043,1721407832941,-155.0,0.0002679,2]
[332660044,1721407832952,-415.21705579,0.00026828,10]
[332660045,1721407832962,-1185.81041737,0.00026847,2]
[332660046,1721407832972,-12.92716779,0.00027,2]
[332660047,1721407832989,-437.07283221,0.00027,2]
[332660048,1721407832999,-352.48,0.00027159,2]
[332660049,1721407833008,-154.81444549,0.00027248,2]
[332660050,1721407833019,-150.0,0.00027315,2]
[332660051,1721407833029,-71.4327123,0.00027674,2]
[332660052,1721407833041,-83.49726713,0.00027674,2]
[332660053,1721407833051,-219.93,0.00027714,2]
[332660054,1721407833062,-227.43774807,0.00027999,5]
[332660055,1721407833072,-99.23724442,0.00028092,2]
[332660089,1721407838319,-362.70058116,0.00019999,2]
[332660090,1721407838329,-18.63407252,0.00028092,2]
[332660091,1721407838341,-37.05866249,0.00028092,2]
[332660092,1721407838353,-154.81444549,0.00028145,2]
[332660093,1721407838363,-180.0,0.000282,5]
[332660094,1721407838373,-153.88854846,0.00028682,2]
[332660095,1721407838383,-250.0,0.0002893,2]
[332660096,1721407838393,-500.0,0.00029,2]
[332660097,1721407838403,-189.54,0.00029125,120]
[332660099,1721407838412,-167.87,0.00029199,120]
[332660100,1721407838422,-1257.52868454,0.00029299,2]
[332660101,1721407838434,-22642.47131546,0.00029299,2]
[332660103,1721407838444,-352.48,0.00029422,2]
[332660105,1721407838453,-1378.69160911,0.00029762,2]
[332660107,1721407838464,-308.78185671,0.00029762,2]
[332660109,1721407838473,-184.74,0.00029898,2]
[332660111,1721407838483,-253.4,0.00029902,60]
[332660113,1721407838492,-1423.51,0.00029905,2]
[332660115,1721407838502,-8509.94357223,0.0003,4]
[332660116,1721407838511,-221.59,0.00030458,2]
[332660118,1721407838520,-153.88854848,0.00030674,7]
[332660120,1721407838530,-1000.0,0.00030926,2]
[332660122,1721407838539,-957.82101221,0.00030948,2]
[332660125,1721407838551,-702.38873171,0.00030948,2]
[332660126,1721407838561,-550.0,0.00031,2]
[332660127,1721407838571,-525.0,0.00031,3]
[332660128,1721407838580,-155.03272074,0.00031082,7]
[332660129,1721407838589,-600.0,0.00031561,13]
[332660130,1721407838599,-154.81444549,0.00031655,7]
[332660131,1721407838609,-352.48,0.00031686,2]
[332660132,1721407838619,-600.0,0.00031692,14]
[332660133,1721407838630,-600.0,0.00031692,14]
[332660134,1721407838640,-600.0,0.00031823,14]
[332660135,1721407838650,-600.0,0.00031823,14]
[332660136,1721407838659,-150.0,0.00031936,2]
[332660137,1721407838669,-600.0,0.00031956,14]
[332660138,1721407838679,-600.0,0.00031956,14]
[332660139,1721407838688,-166.66666667,0.00032356,7]
[332660140,1721407838698,-225.2,0.00032461,2]
[332660141,1721407838707,-600.0,0.00032745,17]
[332660142,1721407838716,-3316.11848887,0.00032776,15]
[332660143,1721407838725,-1006.04,0.000328,2]
[332660144,1721407838735,-305.76,0.000328,2]
[332660145,1721407838744,-244.20719531,0.00032876,14]
[332660146,1721407838754,-500.0,0.00032876,14]
[332660147,1721407838763,-500.0,0.00032876,14]
[332660148,1721407838772,-500.0,0.00032876,14]
[332660149,1721407838781,-500.0,0.00032876,14]
[332660150,1721407838791,-500.0,0.00032876,14]
[332660151,1721407838800,-500.0,0.00032876,14]
[332660152,1721407838810,-500.0,0.00032876,14]
[332660153,1721407838820,-500.0,0.00032876,14]
[332660154,1721407838829,-500.0,0.00032876,14]
[332660155,1721407838839,-500.0,0.00032876,14]
[332660156,1721407838849,-371.49731704,0.00032876,14]
[332660157,1721407838858,-500.0,0.00032876,14]
[332660158,1721407838868,-1812.53556719,0.00032913,15]
[332660159,1721407838880,-500.0,0.00033013,14]
[332660160,1721407838890,-160.04014289,0.00033013,14]
[332660161,1721407838900,-500.0,0.00033013,14]
[332660162,1721407838910,-500.0,0.00033013,14]
[332660163,1721407838921,-500.0,0.00033013,14]
[332660164,1721407838930,-500.0,0.00033013,14]
[332660165,1721407838940,-500.0,0.00033013,14]
[332660166,1721407838950,-500.0,0.00033013,14]
[332660167,1721407838960,-3316.11848882,0.0003305,15]
[332660168,1721407838970,-500.0,0.00033095,30]
[332660169,1721407838981,-2000.0,0.000331,9]
[332660170,1721407838995,-343.0,0.000331,22]
[332660171,1721407839008,-500.0,0.0003315,14]
[332660172,1721407839018,-500.0,0.0003315,14]
[332660173,1721407839029,-223.02,0.0003315,14]
[332660174,1721407839040,-500.0,0.0003315,14]
[332660175,1721407839050,-500.0,0.0003315,2]
[332660176,1721407839060,-500.0,0.0003315,2]
[332660177,1721407839074,-500.0,0.0003315,2]
[332660178,1721407839083,-500.0,0.0003315,2]
[332660179,1721407839092,-500.0,0.0003315,2]
[332660180,1721407839102,-500.0,0.0003315,2]
[332660181,1721407839111,-500.0,0.0003315,14]
[332660182,1721407839121,-500.0,0.0003315,14]
[332660183,1721407839132,-500.0,0.0003315,14]
[332660184,1721407839142,-6172.58826927,0.00033229,2]
[332660185,1721407839157,-2192.4951309,0.00033229,2]
[332660186,1721407839172,-697.22222227,0.00033229,2]
[332660187,1721407839184,-397.25361923,0.00033229,2]
[332660188,1721407839196,-37680.53168441,0.00033229,2]
[332660189,1721407839207,-1296.27895919,0.00033229,2]
[332660190,1721407839219,-994.53623725,0.00033229,2]
[332660191,1721407839231,-1731.09387748,0.00033229,2]
[332660192,1721407839241,-500.0,0.00033287,14]
[332660193,1721407839251,-500.0,0.00033287,14]
[332660194,1721407839262,-500.0,0.00033287,14]
[332660195,1721407839271,-109.50292855,0.00033287,33]
[332660196,1721407839283,-390.49707145,0.00033287,33]
[332660197,1721407839292,-274.87292855,0.00033287,14]
[332660198,1721407839303,-225.12707145,0.00033287,14]
[332660199,1721407839313,-500.0,0.00033287,14]
[332660200,1721407839323,-500.0,0.00033287,14]
[332660201,1721407839333,-155.82428154,0.00033302,7]
[332660202,1721407839343,-500.0,0.00033323,2]
[332660203,1721407839353,-3316.11848882,0.00033324,15]
[332660204,1721407839363,-600.0,0.00033402,19]
[332660205,1721407839375,-600.0,0.00033402,19]
[332660206,1721407839386,-500.0,0.00033424,14]
[332660207,1721407839396,-500.0,0.00033424,14]
[332660208,1721407839406,-212.27927339,0.00033424,14]
[332660209,1721407839415,-500.0,0.00033424,14]
[332660210,1721407839424,-500.0,0.00033424,14]
[332660211,1721407839434,-500.0,0.00033424,14]
[332660212,1721407839443,-500.0,0.0003346,2]
[332660213,1721407839452,-500.0,0.00033479,36]
[332660214,1721407839462,-500.0,0.00033561,14]
[332660215,1721407839474,-500.0,0.00033561,14]
[332660216,1721407839483,-500.0,0.00033561,14]
[332660217,1721407839493,-103.1671382,0.00033561,14]
[332660221,1721407839865,-396.8328618,0.00033561,14]
[332660223,1721407839875,-500.0,0.00033561,14]
[332660225,1721407839884,-178.66455517,0.00033564,14]
[332660227,1721407839895,-321.33544483,0.00033564,14]
[332660230,1721407839904,-500.0,0.00033564,14]
[332660232,1721407839914,-346.72000001,0.00033564,14]
[332660234,1721407839926,-502.15799759,0.00033564,14]
[332660236,1721407839936,-200.0,0.00033564,7]
[332660238,1721407839946,-500.0,0.00033564,14]
[332660240,1721407839957,-500.0,0.00033564,14]
[332660243,1721407839966,-200.0,0.00033564,7]
[332660246,1721407839975,-500.0,0.00033564,30]
[332660249,1721407839985,-344.4,0.00033564,14]
[332660251,1721407840002,-500.0,0.00033564,14]
[332660253,1721407840011,-500.0,0.00033597,2]
[332660255,1721407840020,-3316.11848882,0.00033598,15]
[332660257,1721407840031,-600.0,0.000336,19]
[332660259,1721407840040,-600.0,0.000336,19]
[332660261,1721407840050,-343.0,0.000336,22]
[332660263,1721407840059,-500.0,0.00033671,39]
[332660265,1721407840070,-500.0,0.00033698,14]
[332660267,1721407840079,-500.0,0.00033698,14]
[332660269,1721407840089,-500.0,0.00033698,14]
[332660271,1721407840098,-286.90884671,0.00033698,14]
[332660273,1721407840108,-500.0,0.00033698,14]
[332660275,1721407840119,-1500.0,0.000337,2]
[332660276,1721407840129,-517.03,0.00033701,14]
[332660277,1721407840139,-500.0,0.00033701,14]
[332660278,1721407840148,-200.0,0.00033701,7]
[332660279,1721407840158,-500.0,0.00033701,30]
[332660281,1721407840167,-500.0,0.00033701,14]
[332660283,1721407840176,-173.48,0.00033709,2]
[332660285,1721407840185,-500.0,0.00033734,2]
[332660287,1721407840194,-155.0,0.00033776,5]
[332660289,1721407840204,-219.93,0.00033785,2]
[332660291,1721407840213,-500.0,0.00033835,14]
[332660293,1721407840222,-500.0,0.00033835,14]
[332660295,1721407840231,-500.0,0.00033835,14]
[332660297,1721407840243,-500.0,0.00033835,14]
[332660299,1721407840253,-500.0,0.00033838,14]
[332660301,1721407840262,-200.0,0.00033838,7]
[332660303,1721407840272,-500.0,0.00033838,30]
[332660305,1721407840283,-500.0,0.00033838,14]
[332660307,1721407840292,-500.0,0.00033863,42]
[332660309,1721407840301,-500.0,0.00033871,2]
[332660311,1721407840311,-3276.11080614,0.00033872,15]
[332660313,1721407840323,-40.00768268,0.00033872,15]
[332660316,1721407840333,-385.17990042,0.0003391,2]
[332660318,1721407840343,-155.03272074,0.00033936,7]
[332660319,1721407840352,-352.48,0.0003395,2]
[332660321,1721407840361,-500.0,0.00033972,14]
[332660323,1721407840371,-500.0,0.00033972,14]
[332660325,1721407840383,-500.0,0.00033972,14]
[332660327,1721407840392,-500.0,0.00033972,14]
[332660329,1721407840401,-590.4233787,0.00033975,14]
[332660331,1721407840410,-200.0,0.00033975,7]
[332660333,1721407840420,-500.0,0.00033975,30]
[332660335,1721407840429,-500.0,0.00033975,14]
[332660338,1721407840441,-150.0,0.00033978,2]
[332660340,1721407840450,-153.0,0.00033991,2]
[332660341,1721407840460,-150.0,0.00033999,2]
[332660343,1721407840471,-1000.0,0.00034,7]
[332660345,1721407840481,-150.0,0.00034008,2]
[332660347,1721407840492,-500.0,0.00034008,2]
[332660349,1721407840504,-500.0,0.00034054,45]
[332660351,1721407840514,-225.2,0.00034084,2]
[332660353,1721407840526,-150.0,0.00034093,2]
[332660355,1721407840537,-150.0,0.00034096,2]
[332660357,1721407840546,-2000.0,0.000341,12]
[332660359,1721407840555,-343.0,0.000341,23]
[332660361,1721407840564,-500.0,0.00034109,14]
[332660363,1721407840573,-500.0,0.00034109,14]
[332660365,1721407840582,-500.0,0.00034109,14]
[332660366,1721407840591,-500.0,0.00034109,14]
[332660368,1721407840602,-200.0,0.00034112,7]
[332660370,1721407840611,-500.0,0.00034112,30]
[332660372,1721407840620,-500.0,0.00034112,14]
[332660374,1721407840632,-150.0,0.00034125,2]
[332660376,1721407840641,-20.67631746,0.00034127,2]
[332660379,1721407840653,-129.32368254,0.00034127,2]
[332660381,1721407840662,-159.00411162,0.00034135,2]
[332660383,1721407840671,-315.21697047,0.00034141,2]
[332660385,1721407840680,-500.0,0.00034145,2]
[332660386,1721407840689,-3316.11848882,0.00034146,15]
[332660388,1721407840698,-226.74750375,0.00034146,7]
[332660390,1721407840708,-1861.6105,0.00034146,2]
[332660392,1721407840717,-150.0,0.00034162,2]
[332660395,1721407840727,-517.39,0.00034199,14]
[332660396,1721407840737,-500.0,0.00034199,14]
[332660399,1721407840746,-396.47,0.00034199,14]